[Event "EYTCC U12 Girls 2019"]
[Site "Pardubice"]
[Date "2019.07.17"]
[Round "7.22"]
[White "Karaivanova, Petya"]
[Black "Janouskova, Adela"]
[Result "1-0"]
[ECO "B75"]
[WhiteElo "1792"]
[BlackElo "1200"]
[Annotator "NA"]
[PlyCount "109"]
[EventDate "2019.07.11"]
[EventType "swiss"]
[EventCountry "CZE"]
[SourceTitle "playchess.com"]
[Source "ChessBase"]
[SourceQuality "1"]
[WhiteTeam "Bulgaria"]
[BlackTeam "Czech Republic"]
[WhiteTeamCountry "BUL"]
[BlackTeamCountry "CZE"]
[TimeControl "40/5400+30:1800+30"]

1. e4 {[%emt 0:00:00]} c5 {[%emt 0:00:00]} 2. Nf3 {[%emt 0:00:00]} d6 {[%emt 0:00:00]} 3. d4 {[%emt 0:00:00]} cxd4 {[%emt 0:00:00]} 4. Nxd4 {[%emt 0:00:00]} Nf6 {[%emt 0:00:03]} 5. Nc3 {[%emt 0:00:00]} g6 {[%emt 0:00:23]} 6. Be3 {[%emt 0:00:03]} Bg7 {[%emt 0:00:13]} 7. f3 {[%emt 0:00:18]} Nc6 {[%emt 0:00:08]} 8. Bc4 {[%emt 0:00:26]} O-O {[%emt 0:00:11]} 9. Bb3 {[%emt 0:01:17]} Bd7 {[%emt 0:00:14]} 10. Qd2 {[%emt 0:00:53]} Rc8 {[%emt 0:01:22]} 11. O-O-O {[%emt 0:03:22]} Ne5 {[%emt 0:01:50]} 12. Bh6 {[%emt 0:06:10]} Nc4 {[%emt 0:02:15]} 13. Bxc4 {[%emt 0:01:05]} Rxc4 {[%emt 0:00:12]} 14. Bxg7 {[%emt 0:00:07]} Kxg7 {[%emt 0:00:06]} 15. Kb1 {[%emt 0:02:13]} Qb6 {[%emt 0:01:54]} 16. Nb3 {[%emt 0:10:18]} a5 {[%emt 0:01:44]} 17. e5 {[%emt 0:11:41]} Ne8 {[%emt 0:01:50]} 18. Nd5 {[%emt 0:04:17]} Qd8 {[%emt 0:01:36]} 19. exd6 {[%emt 0:02:57]} Nxd6 {[%emt 0:02:05]} 20. Nxe7 {[%emt 0:01:40]} Qxe7 {[%emt 0:00:15]} 21. Qxd6 {[%emt 0:00:59]} Qxd6 {[%emt 0:00:10]} 22. Rxd6 {[%emt 0:00:12]} Bf5 {[%emt 0:01:51]} 23. Nd4 {[%emt 0:01:43]} Rc5 {[%emt 0:00:22]} 24. g4 {[%emt 0:02:54]} Bc8 {[%emt 0:00:40]} 25. Re1 {[%emt 0:01:02]} b5 {[%emt 0:01:44]} 26. Nb3 {[%emt 0:00:41]} Rc7 {[%emt 0:00:38]} 27. Nxa5 {[%emt 0:02:46]} Bb7 {[%emt 0:00:42]} 28. Nxb7 {[%emt 0:07:27]} Rxb7 {[%emt 0:00:02]} 29. f4 {[%emt 0:02:26]} Rc8 {[%emt 0:00:53]} 30. Rd5 {[%emt 0:04:06]} Rbc7 {[%emt 0:00:46]} 31. Re2 {[%emt 0:06:57]} Rc4 {[%emt 0:00:34]} 32. Rf2 {[%emt 0:00:24]} b4 {[%emt 0:00:30]} 33. b3 {[%emt 0:00:55]} Re4 {[%emt 0:00:29]} 34. Kb2 {[%emt 0:07:46]} Rce8 {[%emt 0:00:36]} 35. Rd1 {[%emt 0:01:20]} Re2 {[%emt 0:00:36]} 36. Rd2 {[%emt 0:04:59]} Rxd2 {[%emt 0:00:34]} 37. Rxd2 {[%emt 0:00:04]} Re4 {[%emt 0:00:11]} 38. Rf2 {[%emt 0:00:10]} Kf6 {[%emt 0:00:29]} 39. a3 {[%emt 0:05:14]} bxa3+ {[%emt 0:00:17]} 40. Kxa3 {[%emt 0:00:07]} h5 {[%emt 0:00:25]} 41. h3 {[%emt 0:12:07]} Re3 {[%emt 0:00:46]} 42. f5 {[%emt 0:01:11]} Rxh3 {[%emt 0:00:24]} 43. fxg6+ {[%emt 0:00:08]} Kxg6 {[%emt 0:00:16]} 44. gxh5+ {[%emt 0:00:10]} Rxh5 {[%emt 0:00:08]} 45. b4 {[%emt 0:01:42]} Re5 {[%emt 0:01:00]} 46. c4 {[%emt 0:02:36]} f5 {[%emt 0:01:08]} 47. b5 {[%emt 0:01:16]} Re8 {[%emt 0:00:34]} 48. Kb4 {[%emt 0:01:03]} Kg5 {[%emt 0:00:13]} 49. c5 {[%emt 0:01:37]} f4 {[%emt 0:00:24]} 50. b6 {[%emt 0:00:36]} Kg4 {[%emt 0:00:18]} 51. c6 {[%emt 0:01:10]} f3 {[%emt 0:01:49]} 52. c7 {[%emt 0:02:50]} Kg3 {[%emt 0:00:29]} 53. Rxf3+ {[%emt 0:01:16]} Kxf3 {[%emt 0:00:17]} 54. b7 {[%emt 0:00:06]} Re4+ {[%emt 0:01:28]} 55. Kc5 {[%emt 0:03:28]} 1-0

[Event "EYTCC U12 Girls 2019"]
[Site "Pardubice"]
[Date "2019.07.17"]
[Round "7.23"]
[White "Veverkova, Dorota"]
[Black "Zhou, Lepu Coco"]
[Result "0-1"]
[ECO "C55"]
[WhiteElo "1348"]
[BlackElo "1861"]
[Annotator "NA"]
[PlyCount "78"]
[EventDate "2019.07.11"]
[EventType "swiss"]
[EventCountry "CZE"]
[SourceTitle "playchess.com"]
[Source "ChessBase"]
[SourceQuality "1"]
[WhiteTeam "Czech Republic"]
[BlackTeam "Germany"]
[WhiteTeamCountry "CZE"]
[BlackTeamCountry "GER"]
[TimeControl "40/5400+30:1800+30"]

1. e4 {[%emt 0:00:00]} e5 {[%emt 0:00:00]} 2. Nf3 {[%emt 0:00:00]} Nc6 {[%emt 0:00:00]} 3. d4 {[%emt 0:00:00]} exd4 {[%emt 0:00:00]} 4. Bc4 {[%emt 0:00:00]} Nf6 {[%emt 0:00:15]} 5. e5 {[%emt 0:00:10]} d5 {[%emt 0:00:12]} 6. Bb5 {[%emt 0:00:16]} Ne4 {[%emt 0:00:42]} 7. Nxd4 {[%emt 0:00:27]} Bd7 {[%emt 0:00:43]} 8. Bxc6 {[%emt 0:00:35]} bxc6 {[%emt 0:01:50]} 9. O-O {[%emt 0:01:35]} Bc5 {[%emt 0:01:24]} 10. f3 {[%emt 0:01:17]} Ng5 {[%emt 0:00:14]} 11. f4 {[%emt 0:01:03]} Ne4 {[%emt 0:00:24]} 12. Nc3 {[%emt 0:04:54]} Nxc3 {[%emt 0:09:38]} 13. bxc3 {[%emt 0:00:27]} Bb6 {[%emt 0:02:25]} 14. Be3 {[%emt 0:02:53]} Ba5 {[%emt 0:06:45]} 15. Qd2 {[%emt 0:01:56]} Bb6 {[%emt 0:06:47]} 16. Rae1 {[%emt 0:02:45]} Qe7 {[%emt 0:04:46]} 17. Bf2 {[%emt 0:03:36]} O-O {[%emt 0:11:22]} 18. Bg3 {[%emt 0:04:46]} c5 {[%emt 0:02:24]} 19. Nf3 {[%emt 0:03:05]} Bb5 {[%emt 0:02:46]} 20. Rf2 {[%emt 0:01:51]} Qd7 {[%emt 0:02:51]} 21. Kh1 {[%emt 0:03:12]} d4 {[%emt 0:02:13]} 22. Nh4 {[%emt 0:11:39]} Ba5 {[%emt 0:00:49]} 23. Qc1 {[%emt 0:02:47]} Bxc3 {[%emt 0:00:39]} 24. Rd1 {[%emt 0:00:44]} Qe6 {[%emt 0:02:41]} 25. f5 {[%emt 0:02:12]} Qa6 {[%emt 0:09:39]} 26. f6 {[%emt 0:02:12]} gxf6 {[%emt 0:06:02]} 27. exf6 {[%emt 0:02:33]} Kh8 {[%emt 0:00:33]} 28. Ng6+ {[%emt 0:01:32]} fxg6 {[%emt 0:01:24]} 29. f7 {[%emt 0:00:50]} d3 {[%emt 0:01:26]} 30. Qe3 {[%emt 0:02:21]} Bg7 {[%emt 0:01:26]} 31. cxd3 {[%emt 0:04:37]} Bd7 {[%emt 0:07:09]} 32. Be5 {[%emt 0:04:26]} Qe6 {[%emt 0:01:21]} 33. Re1 {[%emt 0:01:54]} Rab8 {[%emt 0:04:19]} 34. h3 {[%emt 0:00:45]} Qxe5 {[%emt 0:02:04]} 35. Qxe5 {[%emt 0:00:15]} Bxe5 {[%emt 0:00:13]} 36. Rxe5 {[%emt 0:00:10]} Bf5 {[%emt 0:01:44]} 37. Rxc5 {[%emt 0:01:15]} Rxf7 {[%emt 0:00:17]} 38. g4 {[%emt 0:00:59]} Be4+ {[%emt 0:00:11]} 39. Kg1 {[%emt 0:00:44]} Rb1+ 0-1

[Event "EYTCC U12 Girls 2019"]
[Site "Pardubice"]
[Date "2019.07.17"]
[Round "7.24"]
[White "Pohle, Saskia"]
[Black "Zadrapova, Amalie"]
[Result "1-0"]
[ECO "B90"]
[WhiteElo "1719"]
[BlackElo "1248"]
[Annotator "NA"]
[PlyCount "57"]
[EventDate "2019.07.11"]
[EventType "swiss"]
[EventCountry "CZE"]
[SourceTitle "playchess.com"]
[Source "ChessBase"]
[SourceQuality "1"]
[WhiteTeam "Germany"]
[BlackTeam "Czech Republic"]
[WhiteTeamCountry "GER"]
[BlackTeamCountry "CZE"]
[TimeControl "40/5400+30:1800+30"]

1. e4 {[%emt 0:00:00]} c5 {[%emt 0:00:00]} 2. Nf3 {[%emt 0:00:00]} d6 {[%emt 0:00:00]} 3. d4 {[%emt 0:00:00]} cxd4 {[%emt 0:00:00]} 4. Nxd4 Nf6 {[%emt 0:00:07]} 5. Nc3 {[%emt 0:00:00]} a6 {[%emt 0:00:10]} 6. Qf3 {[%emt 0:02:37]} e6 {[%emt 0:02:27]} 7. Bd2 {[%emt 0:01:47]} Be7 {[%emt 0:01:02]} 8. O-O-O {[%emt 0:01:44]} O-O {[%emt 0:00:42]} 9. g4 {[%emt 0:00:43]} e5 {[%emt 0:08:40]} 10. Nf5 {[%emt 0:01:01]} Nc6 {[%emt 0:03:29]} 11. g5 {[%emt 0:05:53]} Nd7 {[%emt 0:00:29]} 12. h4 {[%emt 0:03:36]} f6 {[%emt 0:10:56]} 13. Qg3 {[%emt 0:03:39]} g6 {[%emt 0:04:04]} 14. gxf6 {[%emt 0:01:20]} Nxf6 {[%emt 0:07:45]} 15. h5 {[%emt 0:09:33]} Kf7 {[%emt 0:04:35]} 16. hxg6+ {[%emt 0:03:16]} hxg6 {[%emt 0:01:05]} 17. Bc4+ {[%emt 0:03:04]} Ke8 {[%emt 0:01:33]} 18. Ng7+ {[%emt 0:05:42]} Kd7 {[%emt 0:00:25]} 19. Ne6 {[%emt 0:01:02]} Qe8 {[%emt 0:00:40]} 20. Na4 {[%emt 0:06:06]} Bd8 {[%emt 0:03:10]} 21. Nxf8+ {[%emt 0:04:03]} Qxf8 {[%emt 0:00:16]} 22. Nc3 {[%emt 0:06:45]} Qe8 {[%emt 0:03:06]} 23. Rh6 {[%emt 0:04:26]} b5 {[%emt 0:03:16]} 24. Bd5 {[%emt 0:03:03]} Nxd5 {[%emt 0:01:03]} 25. Nxd5 {[%emt 0:00:14]} Bb7 {[%emt 0:02:55]} 26. Qg4+ {[%emt 0:00:58]} Qe6 {[%emt 0:00:44]} 27. Rh7+ {[%emt 0:00:15]} Ne7 {[%emt 0:01:26]} 28. Nf6+ {[%emt 0:00:19]} Kc8 {[%emt 0:00:17]} 29. Qxe6+ {[%emt 0:00:16]} 1-0